Workbook

Sheet Sheet1
A1: Provision of Fire & Rescue Services at Kriel Power Station for a period of five years Tender E2814GXMPKRI
A2: Item No. | B2: Description | C2: Unit | D2: Qty | E2: Rate | F2: Total
B3: PRELIMINARY & GENERAL
A4: 100 | B4: General Preliminary & General
A5: =A4+1 -> 101 | B5: Site establishment 2x (10x 25) meter containers _ Offices) | C5: Once off | D5: 1 | F5: =E5*D5 -> R 0.00
A6: =A5+1 -> 102 | B6: Station wear (PPE Uniforms) | C6: Yearly | D6: 5 | F6: =E6*D6 -> R 0.00
A7: 103 | B7: Specialised PPE full set bunker suits,helmets , boots etc | C7: Once off | D7: 1 | F7: =E7*D7 -> R 0.00
A8: 104 | B8: Rope Rescue Equipment (Harness, shock absorbing lanyards , positioning lanyard etc) | C8: Once off | D8: 1 | F8: =E8*D8 -> R 0.00
A9: 105 | B9: Health & Safety File Requirements (Safety file) | C9: Yearly | D9: 5 | F9: R 0.00
A10: 106 | B10: Medicals | C10: Yearly | D10: 5 | F10: =E10*D10 -> R 0.00
A11: 107 | B11: Employees police clearance | C11: Yearly | D11: 5 | F11: =E11*D11 -> R 0.00
A12: 108 | B12: 2 Way radio communication | C12: sum | D12: 1 | F12: =E12*D12 -> R 0.00
A13: 109 | B13: Site de - establishment | C13: Item | D13: 1 | F13: =E13*D13 -> R 0.00
B14: Sub-Total | F14: =SUM(F5:F13) -> R 0.00
A15: 200 | B15: Time Related Preliminaries and Generals
A16: 201 | B16: Transportation of employees to (Home -Work -Home) | C16: Monthly | D16: 60 | F16: =E16*D16 -> R 0.00
A17: 202 | B17: Transport (Double cab LVD) | C17: Monthly | D17: 60 | F17: =E17*D17 -> R 0.00
A18: 203 | B18: Consumables / running cost ( Coffees, cleaning staff and stationery) | C18: Monthly | D18: 60 | F18: =E18*D18 -> R 0.00
A19: 204 | B19: Accommodation | C19: Monthly | D19: 60 | F19: =E19*D19 -> R 0.00
B20: Sub-Total | F20: =SUM(F16:F19) -> R 0.00
B21: PRELIMINARY & GENERAL TOTAL | F21: =+F14+F20 -> R 0.00
B22: WORKFORCE NORMAL TIME
A23: 300 | B23: Management
A24: =A23+1 -> 301 | B24: Provision of a Contracts Manager (x1) | C24: Hours | D24: 10,380 | F24: =E24*D24 -> R 0.00
A25: =A24+1 -> 302 | B25: Provision of a Advance Life Support (x1) | C25: Hours | D25: 10,380 | F25: =E25*D25 -> R 0.00
A26: 400 | B26: Supervision
A27: =A26+1 -> 401 | B27: Provision of Shift team Captain (x4) | C27: Hours | D27: 41,520 | F27: =E27*D27 -> R 0.00
A28: 500 | B28: Administration
A29: =A28+1 -> 501 | B29: General Administration / Human Resources with computer literacy (x1) | C29: Hours | D29: 10,380 | F29: =E29*D29 -> R 0.00
A30: 600 | B30: Emergency Response
A31: =A30+1 -> 601 | B31: Provision of fire fighting emergency team (x20) | C31: Hours | D31: 207,600 | F31: =E31*D31 -> R 0.00
B32: NORMAL TIME TOTAL | F32: =SUM(F24:F31) -> R 0.00
B33: WORKFORCE OVERTIME
A34: 700 | B34: Overtime Saturday and Weekdays
A35: =A34+1 -> 701 | B35: Contracts Manager | C35: Hours | D35: 480 | F35: =E35*D35 -> R 0.00
A36: =A35+1 -> 702 | B36: Advance Life Support | C36: Hours | D36: 480 | F36: R 0.00
A37: 703 | B37: Shift team Captain | C37: Hours | D37: 1,920 | F37: R 0.00
A38: 704 | B38: Firefighting emergency team (x20) | C38: Hours | D38: 9,600 | F38: R 0.00
B39: Sub-Total | F39: =SUM(F35:F38) -> R 0.00
A40: 800 | B40: Overtime Sunday and Public Holidays
A41: =A40+1 -> 801 | B41: Contracts Manager | C41: Hours | D41: 480 | F41: =E41*D41 -> R 0.00
A42: =A41+1 -> 802 | B42: Advance Life Support | C42: Hours | D42: 480 | F42: R 0.00
A43: 803 | B43: Shift team Captain | C43: Hours | D43: 1,920 | F43: R 0.00
A44: 804 | B44: Firefighting emergency team (x20) | C44: Hours | D44: 9,600 | F44: R 0.00
B45: Sub-Total | F45: =SUM(F41:F44) -> R 0.00
B46: OVERTIME TOTAL | F46: =+F39+F45 -> R 0.00
B48: SUMMARY
A49: 100 | B49: PRELIMINARY & GENERAL | F49: =+F14 -> R 0.00
A50: 200 | B50: TIME RELATED P's & G's | F50: =+F20 -> R 0.00
A51: 300 | B51: WORKFORCE NORMAL TIME | F51: =+F32 -> R 0.00
A52: 400 | B52: WORKFORCE OVERTIME | F52: =+F46 -> R 0.00
B53: Total Rand Value excluding VAT and CPA | F53: =SUM(F49:F52) -> R 0.00
B55: Submitted Amount
B64: direct fee percentage
B65: Subcontracted fee percentage
